fUST/lending_fUST_20240816
["ID","MTS","AMOUNT","RATE_DAILY","PERIOD"]
[335027121,1723766947286,-151.0,0.0002102,2]
[335027122,1723766947308,-300.901532,0.0002102,2]
[335027123,1723766947330,-541.654511,0.0002102,2]
[335027124,1723766947352,-541.654511,0.0002102,2]
[335027125,1723766947376,-253.379985,0.0002102,2]
[335027126,1723766947397,-151.0,0.0002102,2]
[335027127,1723766947419,-253.379985,0.0002102,2]
[335027128,1723766947441,-3150.0,0.0002103,2]
[335027129,1723766947462,-151.0,0.0002103,2]
[335027130,1723766947482,-151.0,0.0002103,2]
[335027131,1723766947503,-782.93989,0.0002103,2]
[335027132,1723766947524,-782.93989,0.0002103,2]
[335027133,1723766947546,-737.459737,0.0002103,2]
[335027134,1723766947565,-151.0,0.0002103,2]
[335027135,1723766947586,-737.459737,0.0002103,2]
[335027136,1723766947607,-541.654511,0.0002103,2]
[335027137,1723766947629,-541.654511,0.0002103,2]
[335027138,1723766947650,-151.0,0.0002103,2]
[335027139,1723766947671,-183.16,0.00021083,3]
[335027140,1723766947693,-549.53,0.00021083,3]
[335027141,1723766947715,-239.303186,0.00021093,2]
[335027142,1723766947736,-239.303186,0.00021093,2]
[335027143,1723766947760,-434.37418,0.00021093,2]
[335027144,1723766947781,-434.37418,0.00021093,2]
[335027145,1723766947803,-151.0,0.00021093,2]
[335027146,1723766947826,-253.379985,0.00021093,2]
[335027147,1723766947847,-253.379985,0.00021093,2]
[335027148,1723766947869,-20206.254187,0.00021101,3]
[335027149,1723766947891,-4315.75938703,0.00021111,2]
[335027150,1723766947914,-592.630076,0.00021201,2]
[335027151,1723766947937,-592.630076,0.00021201,2]
[335027152,1723766947958,-255.826372,0.00021201,2]
[335027153,1723766947981,-255.826372,0.00021201,2]
[335027154,1723766948002,-151.0,0.00021201,2]
[335027155,1723766948024,-541.654511,0.00021201,2]
[335027156,1723766948045,-541.654511,0.00021201,2]
[335027157,1723766948066,-151.0,0.00021201,2]
[335027158,1723766948087,-541.654511,0.0002122,2]
[335027159,1723766948108,-541.654511,0.0002122,2]
[335027160,1723766948129,-180.676126,0.0002122,2]
[335027161,1723766948151,-500.0,0.0002127,2]
[335027162,1723766948171,-295.28322813,0.0002127,2]
[335027163,1723766948193,-178.94497992,0.0002127,2]
[335027164,1723766948215,-500.0,0.0002127,2]
[335027165,1723766948236,-500.0,0.0002127,2]
[335027166,1723766948257,-500.0,0.0002127,2]
[335027167,1723766948279,-500.0,0.0002127,2]
[335027168,1723766948301,-500.0,0.0002127,2]
[335027169,1723766948322,-500.0,0.0002127,2]
[335027170,1723766948344,-500.0,0.0002127,2]
[335027171,1723766948365,-500.0,0.0002127,2]
[335027172,1723766948388,-500.0,0.0002127,2]
[335027173,1723766948415,-372.59251115,0.0002127,2]
[335027174,1723766948438,-300.0,0.0002127,2]
[335027175,1723766948460,-10000.0,0.00021271,2]
[335027176,1723766948481,-151.0,0.00021271,2]
[335027177,1723766948503,-151.0,0.00021271,2]
[335027178,1723766948524,-782.93989,0.00021271,2]
[335027179,1723766948546,-782.93989,0.00021271,2]
[335027180,1723766948567,-737.459737,0.00021271,2]
[335027181,1723766948587,-151.0,0.00021271,2]
[335027182,1723766948610,-737.459737,0.00021271,2]
[335027183,1723766948632,-592.630076,0.00021271,2]
[335027184,1723766948653,-592.630076,0.00021271,2]
[335027185,1723766948673,-255.826372,0.00021271,2]
[335027186,1723766948703,-255.826372,0.00021271,2]
[335027187,1723766948724,-151.0,0.00021271,2]
[335027188,1723766948750,-239.303186,0.00021271,2]
[335027189,1723766948771,-239.303186,0.00021271,2]
[335027190,1723766948793,-434.37418,0.00021271,2]
[335027191,1723766948815,-434.37418,0.00021271,2]
[335027192,1723766948839,-151.0,0.00021271,2]
[335027193,1723766948861,-541.654511,0.00021271,2]
[335027194,1723766948882,-541.654511,0.00021271,2]
[335027195,1723766948905,-541.654511,0.00021271,2]
[335027196,1723766948928,-541.654513,0.00021271,2]
[335027197,1723766948952,-253.379985,0.00021271,2]
[335027198,1723766948978,-253.379985,0.00021271,2]
[335027199,1723766949000,-264.79575604,0.00021517,2]
[335027200,1723766949021,-151.0,0.00021799,2]
[335027201,1723766949042,-151.0,0.00021799,2]
[335027202,1723766949066,-151.0,0.00021799,2]
[335027203,1723766949088,-247.234965,0.00021799,2]
[335027204,1723766949110,-151.0,0.00021799,2]
[335027205,1723766949132,-368.55126,0.00021799,2]
[335027206,1723766949154,-368.55126,0.00021799,2]
[335027207,1723766949178,-782.93989,0.00021799,2]
[335027208,1723766949199,-782.93989,0.00021799,2]
[335027209,1723766949221,-737.459737,0.00021799,2]
[335027210,1723766949241,-151.0,0.00021799,2]
[335027211,1723766949266,-737.459737,0.00021799,2]
[335027212,1723766949287,-239.303186,0.00021799,2]
[335027213,1723766949308,-239.303186,0.00021799,2]
[335027214,1723766949329,-434.37418,0.00021799,2]
[335027215,1723766949351,-434.37418,0.00021799,2]
[335027216,1723766949371,-151.0,0.00021799,2]
[335027217,1723766949393,-253.379985,0.00021799,2]
[335027218,1723766949413,-253.379985,0.00021799,2]
[335027219,1723766949437,-151.0,0.000218,2]
[335027220,1723766949459,-151.0,0.000218,2]
[335027221,1723766949482,-20206.254187,0.00021917,3]
[335027222,1723766949504,-43272.14568761,0.00021927,2]
[335027223,1723766949526,-592.630076,0.00021927,7]
[335027224,1723766949550,-592.630076,0.00021927,7]
[335027225,1723766949571,-255.826372,0.00021927,7]
[335027226,1723766949593,-255.826372,0.00021927,7]
[335027227,1723766949615,-151.0,0.00021927,7]
[335027228,1723766949639,-434.37418,0.00021927,7]
[335027229,1723766949662,-434.37418,0.00021927,7]
[335027230,1723766949684,-253.379985,0.00021927,7]
[335027231,1723766949836,-253.379985,0.00021927,7]
[335027232,1723766949860,-249.30562175,0.00022,2]
[335027233,1723766949887,-151.0,0.00022,7]
[335027234,1723766949916,-151.0,0.00022,7]
[335027235,1723766949941,-151.0,0.00022,7]
[335027236,1723766949965,-368.55126,0.00022,7]
[335027237,1723766949990,-368.55126,0.00022,7]
[335027238,1723766950020,-4872.45741387,0.00022159,3]
[335027249,1723767032640,-1019.135533,0.00020475,2]
[335027250,1723767032650,-974.81101877,0.00020475,2]
[335027312,1723767038810,-44.32451423,0.00020475,2]
[335027314,1723767038819,-151.0,0.00020475,2]
[335027316,1723767038829,-71.27540287,0.00020475,2]
[335027319,1723767038850,-79.72459713,0.00020475,2]
[335027321,1723767038861,-151.0,0.00020475,2]
[335027322,1723767038871,-151.0,0.00020475,2]
[335027324,1723767038881,-151.0,0.00020475,2]
[335027327,1723767038890,-288.939382,0.00020475,2]
[335027329,1723767038899,-151.0,0.00020475,2]
[335027332,1723767038908,-9.72327527,0.00020475,2]
[335027430,1723767230815,-5560.16306414,0.00013971,2]
[335027438,1723767935141,-245.98,0.00014245,3]
[335027439,1723767935168,-166.768588,0.00014247,2]
[335027440,1723767935192,-300.50416595,0.0002,2]
[335027441,1723767935214,-250.000006,0.00020566,2]
[335027442,1723767935238,-151.0,0.00020848,2]
[335027443,1723767935263,-150.0,0.00021,2]
[335027444,1723767935284,-5.83180398,0.0002166,2]
[335027446,1723768026100,-162.646576,0.00021968,2]
[335027447,1723768026126,-150.01,0.00022146,2]
[335027448,1723768026149,-2994.38043041,0.00022146,2]
[335027449,1723768026172,-332.02391192,0.0002217,2]
[335027450,1723768030307,-550.41026339,0.0002217,2]
[335027451,1723768030331,-27.12869002,0.0002233,2]
[335027454,1723768076421,273.37336231,9.9e-05,2]
[335027455,1723768084533,273.37336231,9.9e-05,2]
[335027456,1723768092824,273.37336231,9.9e-05,2]
[335027457,1723768100761,273.37336231,9.9e-05,2]
[335027458,1723768108944,273.37336231,9.9e-05,2]
[335027459,1723768124257,272.41173234,9.9e-05,2]
[335027460,1723768128759,4991.74693062,9e-05,2]
[335027462,1723768146121,-217.11203843,0.00012,2]
[335027463,1723768146147,-155.70655759,0.00014519,2]
[335027464,1723768146168,-534.37775465,0.00014519,2]
[335027465,1723768146344,-231.79736913,0.00014519,2]
[335027466,1723768146367,-466.8874849,0.00015,2]
[335027467,1723768146388,-251.64143621,0.00018,2]
[335027468,1723768149280,164.30074096,0.00014519,2]
[335027469,1723768155697,245.0,0.00014519,2]
[335027470,1723768155718,39.31831485,0.00014519,2]
[335027471,1723768156096,-171.1016104,0.00014519,2]
[335027505,1723768231821,-260.30171129,0.00014245,2]
[335027506,1723768231831,-271.48343817,0.00014245,2]
[335027507,1723768231841,-300.0,0.00020499,2]
[335027508,1723768231850,-300.0,0.00020499,2]
[335027509,1723768231859,-207.37041344,0.000205,2]
[335027512,1723768237900,-532.65775619,0.000205,2]
[335027517,1723768237954,-7598.60387095,0.000205,2]
[335027519,1723768237966,-157.03315837,0.000212,30]
[335027521,1723768237976,-309.00538626,0.0002156,2]
[335027522,1723768237986,-302.63687509,0.00022,2]
[335027523,1723768237996,-865.74140387,0.0002217,2]
[335027524,1723768238006,-302.63687509,0.0002222,2]
[335027525,1723768238015,-1497.1902152,0.00022329,2]
[335027526,1723768238025,-166.768588,0.00022429,2]
[335027527,1723768238036,-302.63687509,0.0002244,2]
[335027528,1723768238046,-273.0,0.00022549,2]
[335027529,1723768238057,-302.63687509,0.0002266,2]
[335027530,1723768238068,-5317.57322588,0.00022728,2]
[335027531,1723768238078,-302.63687509,0.0002288,2]
[335027532,1723768238089,-167.37534991,0.000231,4]
[335027533,1723768238098,-160.73794928,0.00024099,2]
[335027534,1723768238108,-160.73794928,0.00024099,2]
[335027535,1723768238118,-208.20868268,0.00024322,2]
[335027536,1723768238127,-200.0,0.00024658,15]
[335027537,1723768238136,-151.0,0.00024658,7]
[335027538,1723768238146,-623.22572205,0.0002478,2]
[335027539,1723768238156,-151.0,0.0002499,7]
[335027540,1723768238167,-162.534581,0.0002499,7]
[335027541,1723768238179,-151.0,0.0002499,7]
[335027542,1723768238188,-151.0,0.0002499,7]
[335027543,1723768238199,-500.0,0.00024999,2]
[335027544,1723768238210,-556.62647563,0.00024999,2]
[335027545,1723768238220,-500.0,0.00024999,2]
[335027546,1723768238231,-500.0,0.00024999,2]
[335027547,1723768238242,-500.0,0.00024999,2]
[335027548,1723768238253,-600.1266455,0.00024999,2]
[335027549,1723768238262,-500.0,0.00024999,2]
[335027550,1723768238273,-500.0,0.00024999,2]
[335027551,1723768238282,-500.0,0.00024999,2]
[335027552,1723768238291,-154.79103211,0.00025,2]
[335027553,1723768238301,-14227.47179932,0.00025,60]
[335027554,1723768238310,-151.0,0.00025,7]
[335027555,1723768238320,-151.0,0.00025,7]
[335027556,1723768238330,-151.0,0.00025,7]
[335027557,1723768238340,-151.0,0.00025,7]
[335027558,1723768238351,-151.0,0.00025,7]
[335027559,1723768238362,-150.112233,0.000256,5]
[335027560,1723768238371,-151.0,0.00025817,7]
[335027561,1723768238381,-151.0,0.00025817,7]
[335027562,1723768238392,-151.0,0.00026543,7]
[335027563,1723768238403,-151.0,0.00026543,7]
[335027564,1723768238413,-158.0,0.0002669,16]
[335027565,1723768238422,-151.0,0.0002671,7]
[335027566,1723768238432,-151.0,0.00026808,7]
[335027567,1723768238444,-151.0,0.00026808,7]
[335027568,1723768238454,-151.0,0.00026808,7]
[335027569,1723768238465,-151.0,0.00026808,7]
[335027570,1723768238475,-260.4947531,0.00028709,2]
[335027571,1723768238485,-294.7678211,0.00028881,2]
[335027572,1723768238495,-207.41445,0.00028881,2]
[335027573,1723768238504,-207.41445,0.00028881,2]
[335027574,1723768238514,-207.41445,0.00028881,2]
[335027575,1723768238525,-207.41445,0.00028881,2]
[335027576,1723768238535,-207.0850027,0.00028881,2]
[335027577,1723768238546,-150.112233,0.00029,6]
[335027578,1723768238556,-151.0,0.00029004,7]
[335027579,1723768238566,-459.10240692,0.0002989,2]
[335027580,1723768238575,-151.0,0.0002998,7]
[335027581,1723768238586,-151.0,0.0002998,7]
[335027582,1723768238595,-151.0,0.0002998,7]
[335027583,1723768238604,-151.0,0.0002998,7]
[335027584,1723768238614,-151.0,0.0002998,2]
[335027585,1723768238625,-151.0,0.0002998,7]
[335027586,1723768238635,-151.0,0.0002998,2]
[335027587,1723768238645,-892.3,0.0002998,3]
[335027588,1723768238655,-1017.88,0.0002998,3]
[335027589,1723768238664,-848.23,0.0002998,3]
[335027590,1723768238674,-706.86,0.0002998,3]
[335027591,1723768238683,-589.05,0.0002998,3]
[335027592,1723768238693,-151.0,0.0002999,7]
[335027593,1723768238702,-151.0,0.0002999,7]
[335027594,1723768238712,-151.0,0.0002999,7]
[335027595,1723768238725,-151.0,0.0002999,7]
[335027596,1723768238736,-151.0,0.0002999,7]
[335027597,1723768238745,-151.0,0.0002999,7]
[335027598,1723768238755,-151.0,0.0002999,7]
[335027599,1723768238764,-151.0,0.0002999,7]
[335027600,1723768238773,-151.0,0.0002999,7]
[335027601,1723768238783,-151.0,0.0002999,7]
[335027603,1723768238792,-151.0,0.0002999,7]
[335027605,1723768238803,-151.0,0.0002999,7]
[335027607,1723768238813,-151.0,0.0002999,2]
[335027609,1723768238822,-151.0,0.0002999,7]
[335027611,1723768238831,-154.870802,0.0002999,2]
[335027613,1723768238841,-304.235552,0.0002999,7]
[335027615,1723768238851,-304.235552,0.0002999,7]
[335027617,1723768238862,-304.235552,0.0002999,7]
[335027619,1723768238871,-304.235552,0.0002999,7]
[335027621,1723768238880,-151.0,0.0002999,7]
[335027623,1723768238890,-151.340375,0.0002999,7]
[335027624,1723768238899,-151.0,0.0002999,7]
[335027626,1723768238909,-151.0,0.0002999,7]
[335027628,1723768238918,-196.564383,0.0002999,7]
[335027630,1723768238927,-151.0,0.0002999,7]
[335027632,1723768238936,-151.0,0.0002999,7]
[335027634,1723768238946,-151.0,0.0002999,7]
[335027637,1723768238956,-151.0,0.0002999,7]
[335027639,1723768238969,-237.052031,0.0002999,7]
[335027641,1723768238979,-237.052031,0.0002999,7]
[335027643,1723768238990,-151.0,0.0002999,7]
[335027645,1723768238999,-151.0,0.0002999,7]
[335027647,1723768239008,-917.22198,0.0002999,7]
[335027649,1723768239018,-917.22198,0.0002999,7]
[335027651,1723768239029,-151.0,0.0002999,7]
[335027653,1723768239042,-151.0,0.0002999,7]
[335027655,1723768239052,-151.0,0.0002999,7]
[335027657,1723768239061,-151.0,0.0002999,7]
[335027659,1723768239072,-151.0,0.0002999,7]
[335027660,1723768239082,-151.0,0.0002999,7]
[335027663,1723768239094,-53531.1287938,0.0002999,4]
[335027717,1723768242712,-3980.06022809,0.00024286,2]
[335027718,1723768242723,-13058.9945006,0.0002999,4]
[335027719,1723768242733,-294.841008,0.0002999,7]
[335027720,1723768242742,-294.841008,0.0002999,7]
[335027721,1723768242753,-548.057923,0.0002999,7]
[335027722,1723768242762,-548.057923,0.0002999,7]
[335027723,1723768242772,-516.221815,0.0002999,7]
[335027724,1723768242782,-516.221815,0.0002999,7]
[335027725,1723768242791,-151.0,0.0002999,7]
[335027726,1723768242801,-151.0,0.0002999,7]
[335027727,1723768242812,-151.0,0.0002999,7]
[335027728,1723768242824,-151.0,0.0002999,7]
[335027729,1723768242836,-151.0,0.0002999,7]
[335027730,1723768242847,-151.0,0.0002999,7]
[335027731,1723768242857,-151.0,0.0002999,7]
[335027732,1723768242867,-151.0,0.0002999,7]
[335027733,1723768242877,-151.0,0.0002999,7]
[335027734,1723768242886,-151.0,0.0002999,7]
[335027735,1723768242896,-206.69825969,0.00029999,2]
[335027736,1723768242905,-500.0,0.00029999,2]
[335027737,1723768242914,-500.0,0.00029999,2]
[335027738,1723768242923,-170.8147578,0.00029999,2]
[335027739,1723768242933,-500.0,0.00029999,2]
[335027740,1723768242943,-500.0,0.00029999,2]
[335027741,1723768242952,-500.0,0.00029999,2]
[335027742,1723768242962,-500.0,0.00029999,2]
[335027743,1723768242972,-500.0,0.00029999,2]
[335027744,1723768242982,-500.0,0.00029999,2]
[335027745,1723768242992,-3102.99514182,0.0003,2]
[335027821,1723768248029,-8742.97214262,0.0003,2]
[335027822,1723768248041,-6904.80861817,0.0003,2]
[335027834,1723769146123,-357.3169041,0.00013688,2]
[335027835,1723769146144,-86.15782014,0.00014247,2]
[335027836,1723769241115,-74.48605586,0.00014247,2]
[335027837,1723769241140,-160.643876,0.00021467,2]
[335027838,1723769241161,-302.63687509,0.00022,2]
[335027839,1723769241182,-302.63687509,0.0002222,2]
[335027840,1723769241203,-302.63687509,0.0002244,2]
[335027841,1723769241223,-302.63687509,0.0002266,2]
[335027842,1723769241244,-258.24207758,0.0002288,2]
[335027844,1723769351222,-161.600421,0.00014247,2]
[335027845,1723769369908,187.15641515,0.00017269,2]
[335027846,1723769369931,28.82666772,0.00017269,2]
[335027847,1723769374503,134.50666496,0.00014247,2]
[335027848,1723769374528,260.16250251,0.00014247,2]
[335027849,1723769374550,171.1016104,0.00014247,2]
[335027877,1723769432373,-299.50005724,0.00014247,2]
[335027951,1723769870321,269.80743785,0.00014519,7]
[335027954,1723770342200,-154.79103211,0.00013051,2]
[335027955,1723770342221,-2727.10267416,0.00014147,2]
[335027958,1723770400117,-248.50218023,0.00014147,2]
[335027960,1723770438102,-398.74543553,0.00014147,2]
[335027962,1723770554131,-406.73092044,0.00014147,2]
[335027963,1723770554155,-174.5934801,0.00014247,2]
[335027964,1723770554177,-161.977317,0.00014247,2]
[335027965,1723770554198,-154.80653207,0.00014519,2]
[335027975,1723770596518,244.31950932,0.00014519,2]
[335027976,1723770596540,95.72517688,0.00014519,2]
[335028072,1723770638350,-217.97419016,0.00021818,2]
[335028074,1723770638360,-36.66114258,0.00021918,2]
[335028076,1723770638427,-125.31617442,0.00021918,2]
[335028077,1723770638437,-208.333333,0.00024275,2]
[335028078,1723770638447,-162.646576,0.00025076,2]
[335028079,1723770638457,-208.333333,0.0002554,2]
[335028080,1723770638467,-161.977317,0.00029589,2]
[335028081,1723770638477,-300.0,0.00029998,2]
[335028082,1723770638487,-748.5951076,0.00029999,2]
[335028083,1723770638497,-455.56962728,0.00029999,2]
[335028084,1723770638508,-568.17224351,0.0003,2]
[335028120,1723770640475,-47342.06832304,0.0003,2]
[335028122,1723770640485,-325.84092361,0.0003,3]
[335028123,1723770640495,-253.422,0.00030146,2]
[335028125,1723770640504,-150.452,0.00030146,2]
[335028127,1723770640514,-244.3,0.00030146,2]
[335028128,1723770640523,-150.0,0.00030146,2]
[335028129,1723770640533,-150.0,0.00030146,2]
[335028130,1723770640543,-508.0,0.00030146,2]
[335028131,1723770640552,-195.33037482,0.00030368,2]
[335028132,1723770640562,-2500.001739,0.0003095,4]
[335028133,1723770640571,-154.80736331,0.0003095,2]
[335028134,1723770640581,-150.0,0.00031368,2]
[335028135,1723770640590,-153.0,0.00031616,2]
[335028136,1723770640600,-153.0000001,0.00031616,2]
[335028137,1723770640609,-153.0,0.00031616,2]
[335028138,1723770640619,-153.0,0.00031616,2]
[335028139,1723770640628,-153.0,0.00031616,2]
[335028140,1723770640639,-367.28192552,0.00032269,2]
[335028141,1723770640648,-367.28192552,0.00032277,2]
[335028142,1723770640659,-367.28192552,0.00032285,2]
[335028143,1723770640670,-367.28192552,0.00032292,2]
[335028144,1723770640680,-150.112233,0.000323,7]
[335028145,1723770640691,-367.28192552,0.000323,2]
[335028146,1723770640703,-490.87,0.0003236,3]
[335028147,1723770640713,-409.06,0.0003236,3]
[335028148,1723770640726,-340.88,0.0003236,3]
[335028149,1723770640738,-150.0,0.00032368,2]
[335028150,1723770640749,-27402.3766989,0.00032369,2]
[335028151,1723770640759,-151.0,0.00032369,7]
[335028152,1723770640769,-151.0,0.0003237,7]
[335028153,1723770640778,-151.0,0.0003237,7]
[335028154,1723770640789,-29965.5554825,0.0003237,4]
[335028155,1723770640799,-500.0,0.00032379,2]
[335028156,1723770640808,-419.57033046,0.00032379,2]
[335028157,1723770640818,-500.0,0.00032379,2]
[335028158,1723770640828,-500.0,0.00032379,2]
[335028159,1723770640837,-500.0,0.00032379,2]
[335028160,1723770640848,-500.0,0.00032379,2]
[335028161,1723770640858,-163.401716,0.0003238,7]
[335028162,1723770640868,-151.0,0.0003238,7]
[335028163,1723770640877,-151.0,0.0003238,7]
[335028164,1723770640887,-151.0,0.0003238,7]
[335028165,1723770640896,-243.388442,0.0003238,7]
[335028166,1723770640906,-243.388442,0.0003238,7]
[335028167,1723770640920,-151.0,0.0003238,7]
[335028168,1723770640930,-151.0,0.0003238,7]
[335028169,1723770640940,-151.0,0.0003238,7]
[335028170,1723770640950,-213.346828,0.0003238,7]
[335028171,1723770640960,-213.346828,0.0003238,7]
[335028172,1723770640970,-151.0,0.0003238,7]
[335028173,1723770640980,-151.0,0.0003238,7]
[335028174,1723770640991,-151.0,0.0003238,7]
[335028175,1723770641001,-234.610982,0.0003238,7]
[335028176,1723770641011,-248.424075,0.0003238,7]
[335028177,1723770641022,-151.0,0.0003238,7]
[335028178,1723770641032,-151.0,0.0003238,7]
[335028179,1723770641042,-151.0,0.0003238,2]
[335028180,1723770641053,-268.252584,0.0003238,7]
[335028181,1723770641062,-151.0,0.0003238,7]
[335028182,1723770641071,-151.0,0.0003238,7]
[335028183,1723770641082,-151.0,0.0003238,7]
[335028184,1723770641092,-151.0,0.0003238,7]
[335028185,1723770641101,-59931.110965,0.0003238,4]
[335028186,1723770641111,-151.0,0.0003239,7]
[335028187,1723770641120,-151.0,0.0003239,7]
[335028188,1723770641131,-151.0,0.0003239,7]
[335028189,1723770641140,-151.0,0.0003239,7]
[335028190,1723770641149,-151.0,0.0003239,7]
[335028191,1723770641160,-179.638451,0.0003239,7]
[335028192,1723770641178,-243.388442,0.0003239,7]
[335028193,1723770641187,-243.388442,0.0003239,7]
[335028194,1723770641196,-243.388442,0.0003239,7]
[335028195,1723770641205,-243.388442,0.0003239,7]
[335028196,1723770641214,-286.838638,0.0003239,7]
[335028197,1723770641223,-151.0,0.0003239,7]
[335028198,1723770641232,-151.0,0.0003239,7]
[335028199,1723770641241,-151.0,0.0003239,7]
[335028200,1723770641251,-255.138574,0.0003239,7]
[335028201,1723770641261,-213.346828,0.0003239,7]
[335028202,1723770641271,-213.346828,0.0003239,7]
[335028203,1723770641280,-213.346828,0.0003239,7]
[335028204,1723770641290,-213.346828,0.0003239,7]
[335028205,1723770641299,-151.0,0.0003239,7]
[335028206,1723770641309,-151.0,0.0003239,7]
[335028207,1723770641319,-151.0,0.0003239,7]
[335028208,1723770641328,-151.0,0.0003239,7]
[335028209,1723770641338,-151.0,0.0003239,7]
[335028210,1723770641348,-151.0,0.0003239,7]
[335028211,1723770641357,-151.0,0.0003239,7]
[335028212,1723770641366,-262.330646,0.0003239,7]
[335028213,1723770641376,-151.0,0.0003239,2]
[335028214,1723770641385,-151.0,0.0003239,2]
[335028215,1723770641396,-151.0,0.0003239,7]
[335028216,1723770641406,-151.0,0.0003239,7]
[335028217,1723770641419,-151.0,0.0003239,7]
[335028218,1723770641429,-180.453477,0.0003239,7]
[335028219,1723770641441,-151.0,0.0003239,7]
[335028220,1723770641452,-151.0,0.0003239,7]
[335028221,1723770641463,-493.25213,0.0003239,7]
[335028222,1723770641473,-493.25213,0.0003239,7]
[335028223,1723770641482,-151.0,0.0003239,7]
[335028224,1723770641492,-825.499782,0.0003239,7]
[335028225,1723770641501,-825.499782,0.0003239,7]
[335028226,1723770641510,-151.0,0.0003239,7]
[335028227,1723770641520,-151.0,0.0003239,7]
[335028228,1723770641529,-151.0,0.0003239,7]
[335028229,1723770641539,-151.0,0.0003239,7]
[335028230,1723770641548,-464.599634,0.0003239,7]
[335028231,1723770641558,-464.599634,0.0003239,7]
[335028232,1723770641567,-151.0,0.0003239,7]
[335028233,1723770641577,-151.0,0.0003239,7]
[335028234,1723770641586,-151.0,0.0003239,7]
[335028235,1723770641595,-151.0,0.0003239,7]
[335028236,1723770641604,-52520.90551347,0.0003239,5]
[335028245,1723770643178,-606.78,0.0003239,5]
[335028270,1723770643804,-320.21041181,0.0003239,5]
[335028295,1723770646241,-35440.10407472,0.0003239,5]
[335028296,1723770646251,-1420.48092806,0.0003239,2]
[335028297,1723770646260,-150.112233,0.000324,7]
[335028298,1723770646269,-150.112233,0.000324,9]
[335028299,1723770646279,-284.07,0.0003248,3]
[335028300,1723770646291,-151.0,0.0003248,7]
[335028301,1723770646300,-500.0,0.00032489,2]
[335028302,1723770646432,-8187.56352899,0.0003249,11]
[335028303,1723770646442,-151.0,0.0003249,7]
[335028304,1723770646452,-151.0,0.0003249,7]
[335028305,1723770646462,-243.388442,0.0003249,7]
[335028306,1723770646472,-243.388442,0.0003249,7]
[335028307,1723770646482,-151.0,0.0003249,7]
[335028308,1723770646491,-213.346828,0.0003249,7]
[335028309,1723770646502,-151.0,0.0003249,7]
[335028310,1723770646517,-151.0,0.0003249,7]
[335028311,1723770646531,-151.0,0.0003249,7]
[335028312,1723770646541,-151.0,0.0003249,2]
[335028313,1723770646551,-19612.20601999,0.0003249,4]
[335028320,1723771558146,-285.63682079,0.00012999,2]
[335028323,1723771628101,-161.977317,0.00014247,2]
[335028324,1723771628125,-161.977317,0.00023688,2]
[335028325,1723771628146,-249.30562175,0.00024818,2]
[335028326,1723771628167,-125.24668668,0.00024912,2]
[335028327,1723771726520,1603.92185992,0.0001,2]
[335028328,1723771727977,1384.50193288,9e-05,2]
[335028329,1723771754115,-217.11203843,0.00014245,2]
[335028330,1723771754136,-164.30074096,0.00014245,2]
[335028331,1723771754156,-231.79736913,0.00014519,2]
[335028332,1723771754176,-534.37775465,0.00014519,2]
[335028333,1723771754196,-466.8874849,0.00015747,2]
[335028334,1723771754217,-300.0,0.00017897,2]
[335028335,1723771754238,-300.0,0.00017897,2]
[335028336,1723771754259,-3885.43906603,0.00017898,2]